fUST/lending_fUST_20260117
["ID","MTS","AMOUNT","RATE_DAILY","PERIOD"]
[402350179,1768662644331,-500.0,0.00016438,3]
[402350181,1768662644340,-500.0,0.00016438,3]
[402350182,1768662644350,-503.37,0.00016438,3]
[402350184,1768662644359,-500.0,0.00016438,3]
[402350186,1768662644369,-500.0,0.00016438,3]
[402350188,1768662644378,-500.0,0.00016438,3]
[402350190,1768662644387,-500.0,0.00016438,3]
[402350192,1768662644396,-1412.04,0.00016438,3]
[402350194,1768662644405,-500.0,0.00016438,3]
[402350196,1768662644415,-500.0,0.00016438,3]
[402350198,1768662644426,-712.76,0.00016438,3]
[402350200,1768662644436,-500.0,0.00016438,3]
[402350202,1768662644445,-1182.04,0.00016438,3]
[402350204,1768662644455,-500.0,0.00016438,3]
[402350206,1768662644464,-500.0,0.00016438,3]
[402350208,1768662644473,-500.0,0.00016438,3]
[402350210,1768662644482,-1599.91,0.00016438,3]
[402350212,1768662644491,-500.0,0.00016438,3]
[402350214,1768662644500,-1003.59,0.00016438,3]
[402350216,1768662644510,-500.0,0.00016438,3]
[402350218,1768662644519,-2072.09,0.00016438,3]
[402350220,1768662644528,-561.39,0.00016438,3]
[402350222,1768662644537,-500.0,0.00016438,3]
[402350224,1768662644546,-500.0,0.00016438,3]
[402350226,1768662644555,-500.0,0.00016438,3]
[402350228,1768662644564,-500.0,0.00016438,3]
[402350230,1768662644573,-500.0,0.00016438,3]
[402350231,1768662644582,-500.0,0.00016438,3]
[402350233,1768662644591,-500.0,0.00016438,3]
[402350236,1768662644600,-500.0,0.00016438,3]
[402350238,1768662644610,-500.0,0.00016438,3]
[402350239,1768662644619,-500.0,0.00016438,3]
[402350241,1768662644630,-1057.27,0.00016438,3]
[402350243,1768662644639,-500.0,0.00016438,3]
[402350245,1768662644651,-500.0,0.00016438,3]
[402350247,1768662644660,-500.0,0.00016438,3]
[402350249,1768662644669,-500.0,0.00016438,3]
[402350251,1768662644678,-1617.77,0.00016438,3]
[402350253,1768662644687,-500.0,0.00016438,3]
[402350255,1768662644696,-656.57,0.00016438,3]
[402350257,1768662644706,-526.17897158,0.00016438,3]
[402350259,1768662644715,-500.0,0.00016438,3]
[402350261,1768662644724,-530.80700199,0.00016438,3]
[402350263,1768662644735,-500.0,0.00016438,3]
[402350265,1768662644744,-500.0,0.00016438,3]
[402350266,1768662644753,-504.38,0.00016438,3]
[402350268,1768662644763,-500.0,0.00016438,3]
[402350270,1768662644772,-500.0,0.00016438,3]
[402350273,1768662644782,-957.3,0.00016438,3]
[402350274,1768662644791,-1012.72,0.00016438,3]
[402350276,1768662644800,-500.0,0.00016438,3]
[402350278,1768662644810,-500.0,0.00016438,3]
[402350280,1768662644820,-500.0,0.00016438,3]
[402350282,1768662644829,-500.0,0.00016438,3]
[402350284,1768662644839,-651.52,0.00016438,3]
[402350286,1768662644848,-500.0,0.00016438,3]
[402350288,1768662644857,-500.0,0.00016438,3]
[402350290,1768662644866,-500.0,0.00016438,3]
[402350292,1768662644875,-500.0,0.00016438,3]
[402350294,1768662644884,-500.0,0.00016438,3]
[402350296,1768662644893,-500.0,0.00016438,3]
[402350298,1768662644902,-734.21,0.00016438,3]
[402350300,1768662644912,-760.44,0.00016438,3]
[402350302,1768662644921,-185.942314,0.00016438,7]
[402350304,1768662644930,-999.9,0.00016438,3]
[402350306,1768662644940,-500.0,0.00016438,3]
[402350308,1768662644949,-500.0,0.00016438,3]
[402350310,1768662644959,-500.0,0.00016438,3]
[402350312,1768662644968,-1040.65,0.00016438,3]
[402350314,1768662644977,-500.0,0.00016438,3]
[402350316,1768662644986,-624.82,0.00016438,3]
[402350318,1768662644996,-500.0,0.00016438,3]
[402350320,1768662645005,-1263.45,0.00016438,3]
[402350322,1768662645015,-1230.06,0.00016438,3]
[402350323,1768662645024,-500.0,0.00016438,3]
[402350325,1768662645033,-500.0,0.00016438,3]
[402350327,1768662645043,-500.0,0.00016438,3]
[402350329,1768662645052,-500.0,0.00016438,3]
[402350331,1768662645062,-730.99,0.00016438,3]
[402350333,1768662645071,-586.02,0.00016438,3]
[402350335,1768662645081,-1196.23,0.00016438,3]
[402350337,1768662645090,-500.0,0.00016438,3]
[402350339,1768662645099,-172.631544,0.00016438,3]
[402350341,1768662645108,-500.0,0.00016438,3]
[402350343,1768662645117,-500.0,0.00016438,3]
[402350345,1768662645126,-625.1,0.00016438,3]
[402350347,1768662645136,-1714.13,0.00016438,3]
[402350348,1768662645145,-1269.7,0.00016438,3]
[402350350,1768662645155,-158.856128,0.00016438,3]
[402350352,1768662645165,-500.0,0.00016438,3]
[402350354,1768662645174,-500.0,0.00016438,3]
[402350356,1768662645184,-500.0,0.00016438,3]
[402350358,1768662645193,-551.17,0.00016438,3]
[402350361,1768662645203,-500.0,0.00016438,3]
[402350362,1768662645213,-500.0,0.00016438,3]
[402350364,1768662645223,-500.0,0.00016438,3]
[402350367,1768662645233,-500.0,0.00016438,3]
[402350368,1768662645242,-500.0,0.00016438,3]
[402350370,1768662645251,-500.0,0.00016438,3]
[402350372,1768662645261,-500.0,0.00016438,3]
[402350374,1768662645270,-1204.33,0.00016438,3]
[402350376,1768662645280,-500.0,0.00016438,3]
[402350379,1768662645289,-501.22117515,0.00016438,3]
[402350381,1768662645303,-500.0,0.00016438,3]
[402350383,1768662645312,-1449.71,0.00016438,3]
[402350385,1768662645322,-500.0,0.00016438,3]
[402350387,1768662645332,-500.0,0.00016438,3]
[402350389,1768662645343,-500.0,0.00016438,3]
[402350391,1768662645352,-500.0,0.00016438,3]
[402350393,1768662645361,-500.0,0.00016438,3]
[402350395,1768662645371,-584.16,0.00016438,3]
[402350397,1768662645380,-1029.72,0.00016438,3]
[402350399,1768662645390,-500.0,0.00016438,3]
[402350400,1768662645399,-501.29993361,0.00016438,3]
[402350402,1768662645408,-500.0,0.00016438,3]
[402350404,1768662645417,-1183.16,0.00016438,3]
[402350406,1768662645426,-500.0,0.00016438,3]
[402350408,1768662645435,-500.0,0.00016438,3]
[402350410,1768662645445,-789.18,0.00016438,3]
[402350412,1768662645454,-500.0,0.00016438,3]
[402350414,1768662645463,-500.0,0.00016438,3]
[402350416,1768662645472,-1423.83,0.00016438,3]
[402350418,1768662645481,-500.0,0.00016438,3]
[402350420,1768662645491,-500.0,0.00016438,3]
[402350422,1768662645500,-267.46419582,0.00016438,3]
[402350424,1768662645509,-500.0,0.00016438,3]
[402350426,1768662645519,-522.78394003,0.00016438,3]
[402350428,1768662645529,-500.0,0.00016438,3]
[402350430,1768662645539,-705.5,0.00016438,3]
[402350432,1768662645549,-500.0,0.00016438,3]
[402350434,1768662645559,-500.0,0.00016438,3]
[402350436,1768662645568,-504.13,0.00016438,3]
[402350438,1768662645578,-500.0,0.00016438,3]
[402350440,1768662645587,-500.0,0.00016438,3]
[402350442,1768662645596,-614.27,0.00016438,3]
[402350444,1768662645606,-536.59,0.00016438,3]
[402350446,1768662645615,-578.87,0.00016438,3]
[402350448,1768662645624,-500.0,0.00016438,3]
[402350450,1768662645633,-500.0,0.00016438,3]
[402350451,1768662645642,-500.0,0.00016438,3]
[402350453,1768662645651,-500.0,0.00016438,3]
[402350455,1768662645660,-500.0,0.00016438,3]
[402350457,1768662645669,-885.93,0.00016438,3]
[402350459,1768662645678,-618.02349392,0.00016438,3]
[402350461,1768662645687,-500.0,0.00016438,3]
[402350463,1768662645696,-672.46,0.00016438,3]
[402350465,1768662645705,-1250.85,0.00016438,3]
[402350467,1768662645713,-545.24616728,0.00016438,3]
[402350469,1768662645723,-500.0,0.00016438,3]
[402350471,1768662645732,-515.94,0.00016438,3]
[402350473,1768662645741,-912.07,0.00016438,3]
[402350475,1768662645751,-564.9,0.00016438,3]
[402350477,1768662645760,-500.0,0.00016438,3]
[402350479,1768662645768,-500.0,0.00016438,3]
[402350481,1768662645777,-500.0,0.00016438,3]
[402350483,1768662645787,-500.0,0.00016438,3]
[402350485,1768662645796,-500.0,0.00016438,3]
[402350487,1768662645805,-570.91,0.00016438,3]
[402350489,1768662645814,-500.0,0.00016438,3]
[402350491,1768662645824,-1309.8,0.00016438,3]
[402350493,1768662645833,-500.0,0.00016438,3]
[402350495,1768662645843,-500.0,0.00016438,3]
[402350497,1768662645852,-4921.67,0.00016438,3]
[402350499,1768662645860,-500.0,0.00016438,3]
[402350500,1768662645869,-500.0,0.00016438,3]
[402350502,1768662645879,-500.0,0.00016438,3]
[402350504,1768662645887,-500.0,0.00016438,3]
[402350506,1768662645897,-974.68,0.00016438,3]
[402350508,1768662645906,-500.0,0.00016438,3]
[402350510,1768662645915,-500.0,0.00016438,3]
[402350512,1768662645925,-1662.79,0.00016438,3]
[402350514,1768662645934,-573.27,0.00016438,3]
[402350516,1768662645943,-1168.69,0.00016438,3]
[402350518,1768662645952,-1382.58,0.00016438,3]
[402350520,1768662645961,-500.0,0.00016438,3]
[402350522,1768662645970,-500.0,0.00016438,3]
[402350524,1768662645979,-500.0,0.00016438,3]
[402350526,1768662645988,-500.0,0.00016438,3]
[402350528,1768662645998,-500.0,0.00016438,3]
[402350530,1768662646007,-632.04690666,0.00016438,3]
[402350531,1768662646016,-500.0,0.00016438,3]
[402350533,1768662646026,-993.02,0.00016438,3]
[402350535,1768662646035,-857.01,0.00016438,3]
[402350537,1768662646044,-757.99,0.00016438,3]
[402350539,1768662646053,-753.75,0.00016438,3]
[402350541,1768662646063,-500.0,0.00016438,3]
[402350543,1768662646072,-682.33,0.00016438,3]
[402350545,1768662646082,-795.42,0.00016438,3]
[402350547,1768662646092,-869.85,0.00016438,3]
[402350549,1768662646101,-743.96,0.00016438,3]
[402350551,1768662646111,-1207.22,0.00016438,3]
[402350553,1768662646120,-500.0,0.00016438,3]
[402350555,1768662646130,-500.0,0.00016438,3]
[402350557,1768662646140,-1288.64,0.00016438,3]
[402350559,1768662646149,-500.0,0.00016438,3]
[402350561,1768662646158,-500.0,0.00016438,3]
[402350563,1768662646168,-842.31,0.00016438,3]
[402350565,1768662646177,-1146.93,0.00016438,3]
[402350567,1768662646187,-500.0,0.00016438,3]
[402350569,1768662646196,-500.0,0.00016438,3]
[402350571,1768662646208,-500.0,0.00016438,3]
[402350573,1768662646218,-500.0,0.00016438,3]
[402350575,1768662646227,-500.0,0.00016438,3]
[402350577,1768662646236,-500.0,0.00016438,3]
[402350579,1768662646246,-500.0,0.00016438,3]
[402350581,1768662646254,-500.0,0.00016438,3]
[402350583,1768662646264,-1674.49,0.00016438,3]
[402350585,1768662646273,-372.96596375,0.00016438,3]
[402350587,1768662646281,-500.0,0.00016438,3]
[402350589,1768662646291,-1522.27,0.00016438,3]
[402350591,1768662646301,-500.0,0.00016438,3]
[402350592,1768662646311,-500.0,0.00016438,3]
[402350594,1768662646321,-500.0,0.00016438,3]
[402350596,1768662646330,-500.0,0.00016438,3]
[402350598,1768662646339,-500.0,0.00016438,3]
[402350600,1768662646350,-500.0,0.00016438,3]
[402350602,1768662646359,-524.59,0.00016438,3]
[402350604,1768662646369,-1097.93,0.00016438,3]
[402350606,1768662646379,-500.0,0.00016438,3]
[402350609,1768662646389,-500.0,0.00016438,3]
[402350610,1768662646398,-500.0,0.00016438,3]
[402350612,1768662646407,-500.0,0.00016438,3]
[402350614,1768662646416,-763.69,0.00016438,3]
[402350616,1768662646426,-500.0,0.00016438,3]
[402350618,1768662646435,-246.89631936,0.00016438,3]
[402350620,1768662646444,-500.0,0.00016438,3]
[402350622,1768662646453,-876.15,0.00016438,3]
[402350624,1768662646463,-500.0,0.00016438,3]
[402350626,1768662646472,-500.0,0.00016438,3]
[402350628,1768662646481,-500.0,0.00016438,3]
[402350630,1768662646490,-500.0,0.00016438,3]
[402350632,1768662646499,-1053.82,0.00016438,3]
[402350634,1768662646508,-872.17,0.00016438,3]
[402350636,1768662646517,-883.33,0.00016438,3]
[402350638,1768662646526,-500.0,0.00016438,3]
[402350640,1768662646537,-500.0,0.00016438,3]
[402350642,1768662646547,-940.3,0.00016438,3]
[402350644,1768662646556,-500.0,0.00016438,3]
[402350646,1768662646566,-500.0,0.00016438,3]
[402350648,1768662646575,-500.0,0.00016438,3]
[402350650,1768662646584,-500.0,0.00016438,3]
[402350651,1768662646592,-865.73,0.00016438,3]
[402350652,1768662646602,-500.0,0.00016438,3]
[402350653,1768662646610,-854.34,0.00016438,3]
[402350654,1768662646619,-776.51,0.00016438,3]
[402350655,1768662646628,-500.0,0.00016438,3]
[402350656,1768662646637,-500.0,0.00016438,3]
[402350657,1768662646646,-500.0,0.00016438,3]
[402350658,1768662646655,-588.85,0.00016438,3]
[402350659,1768662646663,-500.0,0.00016438,3]
[402350660,1768662646672,-500.0,0.00016438,3]
[402350661,1768662646681,-1080.26,0.00016438,3]
[402350663,1768662646691,-500.0,0.00016438,3]
[402350665,1768662646700,-500.0,0.00016438,3]
[402350667,1768662646709,-500.0,0.00016438,3]
[402350669,1768662646718,-500.0,0.00016438,3]
[402350671,1768662646728,-500.0,0.00016438,3]
[402350673,1768662646737,-500.0,0.00016438,3]
[402350675,1768662646746,-2228.69,0.00016438,3]
[402350677,1768662646756,-702.52,0.00016438,3]
[402350679,1768662646765,-500.0,0.00016438,3]
[402350681,1768662646774,-1804.01,0.00016438,3]
[402350683,1768662646783,-500.0,0.00016438,3]
[402350685,1768662646793,-500.0,0.00016438,3]
[402350687,1768662646802,-500.0,0.00016438,3]
[402350689,1768662646811,-500.0,0.00016438,3]
[402350691,1768662646820,-500.0,0.00016438,3]
[402350693,1768662646829,-1413.22,0.00016438,3]
[402350695,1768662646838,-500.0,0.00016438,3]
[402350697,1768662646847,-658.65,0.00016438,3]
[402350699,1768662646856,-500.0,0.00016438,3]
[402350701,1768662646865,-500.0,0.00016438,3]
[402350703,1768662646874,-500.0,0.00016438,3]
[402350705,1768662646883,-916.54,0.00016438,3]
[402350707,1768662646892,-968.77,0.00016438,3]
[402350708,1768662646901,-1193.14,0.00016438,3]
[402350711,1768662646911,-1418.23,0.00016438,3]
[402350712,1768662646920,-1002.5,0.00016438,3]
[402350714,1768662646929,-500.0,0.00016438,3]
[402350717,1768662646939,-7051.84,0.00016438,3]
[402350718,1768662646948,-500.0,0.00016438,3]
[402350721,1768662646958,-500.0,0.00016438,3]
[402350723,1768662646967,-500.0,0.00016438,3]
[402350724,1768662646977,-500.0,0.00016438,3]
[402350726,1768662646986,-500.0,0.00016438,3]
[402350728,1768662646995,-2119.68,0.00016438,3]
[402350730,1768662647004,-500.0,0.00016438,3]
[402350732,1768662647013,-500.0,0.00016438,3]
[402350734,1768662647022,-500.0,0.00016438,3]
[402350736,1768662647032,-877.75,0.00016438,3]
[402350738,1768662647042,-548.54460161,0.00016438,3]
[402350740,1768662647052,-500.0,0.00016438,3]
[402350742,1768662647062,-742.72,0.00016438,3]
[402350744,1768662647071,-500.0,0.00016438,3]
[402350746,1768662647080,-500.0,0.00016438,3]
[402350748,1768662647089,-500.0,0.00016438,3]
[402350750,1768662647099,-500.0,0.00016438,3]
[402350752,1768662647109,-500.0,0.00016438,3]
[402350754,1768662647118,-500.0,0.00016438,3]
[402350756,1768662647128,-2027.73,0.00016438,3]
[402350758,1768662647137,-505.35,0.00016438,3]
[402350760,1768662647147,-500.0,0.00016438,3]
[402350762,1768662647156,-500.0,0.00016438,3]
[402350764,1768662647166,-500.0,0.00016438,3]
[402350766,1768662647175,-500.0,0.00016438,3]
[402350768,1768662647184,-500.0,0.00016438,3]
[402350770,1768662647194,-500.0,0.00016438,3]
[402350772,1768662647203,-1139.5,0.00016438,3]
[402350774,1768662647212,-500.0,0.00016438,3]
[402350776,1768662647221,-500.0,0.00016438,3]
[402350778,1768662647230,-500.0,0.00016438,3]
[402350780,1768662647239,-659.25,0.00016438,3]
[402350782,1768662647249,-500.0,0.00016438,3]
[402350784,1768662647258,-1465.62,0.00016438,3]
[402350786,1768662647268,-500.0,0.00016438,3]
[402350788,1768662647277,-638.63,0.00016438,3]
[402350790,1768662647286,-901.81,0.00016438,3]
[402350792,1768662647296,-500.0,0.00016438,3]
[402350794,1768662647308,-1200.0,0.00016438,2]
[402350796,1768662647318,-484.52529222,0.00016438,3]
[402350798,1768662647327,-635.17,0.00016438,3]
[402350800,1768662647338,-500.0,0.00016438,3]
[402350802,1768662647347,-500.0,0.00016438,3]
[402350804,1768662647356,-2542.22,0.00016438,3]
[402350806,1768662647366,-500.0,0.00016438,3]
[402350808,1768662647377,-500.0,0.00016438,3]
[402350810,1768662647387,-1160.27,0.00016438,3]
[402350813,1768662647396,-500.0,0.00016438,3]
[402350815,1768662647406,-854.92,0.00016438,3]
[402350817,1768662647415,-500.0,0.00016438,3]
[402350818,1768662647425,-500.0,0.00016438,3]
[402350820,1768662647434,-500.0,0.00016438,3]
[402350822,1768662647444,-500.0,0.00016438,3]
[402350825,1768662647454,-500.0,0.00016438,3]
[402350827,1768662647463,-500.0,0.00016438,3]
[402350829,1768662647473,-500.0,0.00016438,3]
[402350831,1768662647482,-500.0,0.00016438,3]
[402350833,1768662647492,-500.0,0.00016438,3]
[402350835,1768662647501,-500.0,0.00016438,3]
[402350837,1768662647510,-1186.24,0.00016438,3]
[402350839,1768662647519,-2392.5,0.00016438,2]
[402350841,1768662647529,-2392.5,0.00016438,2]
[402350843,1768662647538,-2392.5,0.00016438,2]
[402350845,1768662647548,-500.0,0.00016438,3]
[402350847,1768662647557,-500.0,0.00016438,3]
[402350849,1768662647567,-2392.5,0.00016438,2]
[402350851,1768662647576,-2392.5,0.00016438,2]
[402350853,1768662647586,-988.53,0.00016438,3]
[402350855,1768662647595,-2392.5,0.00016438,2]
[402350857,1768662647604,-500.0,0.00016438,3]
[402350869,1768662647687,-2392.5,0.00016438,2]
[402350873,1768662647734,-2392.5,0.00016438,2]
[402350875,1768662647744,-2392.5,0.00016438,2]
[402350877,1768662647754,-2392.5,0.00016438,2]
[402350879,1768662647763,-2392.5,0.00016438,2]
[402350881,1768662647772,-2392.5,0.00016438,2]
[402350883,1768662647782,-2392.5,0.00016438,2]
[402350885,1768662647791,-2392.5,0.00016438,2]
[402350887,1768662647800,-2392.5,0.00016438,2]
[402350889,1768662647809,-2392.5,0.00016438,2]
[402350891,1768662647819,-2392.5,0.00016438,2]
[402350893,1768662647828,-2392.5,0.00016438,2]
[402350895,1768662647838,-500.0,0.00016438,3]
[402350897,1768662647847,-500.0,0.00016438,3]
[402350899,1768662647857,-2392.5,0.00016438,2]
[402350901,1768662647867,-903.28,0.00016438,3]
[402350903,1768662647876,-2392.5,0.00016438,2]
[402350905,1768662647885,-2392.5,0.00016438,2]
[402350907,1768662647894,-2392.5,0.00016438,2]
[402350909,1768662647903,-2392.5,0.00016438,2]
[402350911,1768662647912,-2392.63255502,0.00016438,2]
[402350913,1768662647922,-751.92,0.00016438,3]
[402350915,1768662647931,-500.0,0.00016438,3]
[402350917,1768662647940,-500.0,0.00016438,3]
[402350919,1768662647950,-500.0,0.00016438,3]
[402350921,1768662647960,-500.0,0.00016438,3]
[402350924,1768662647975,-500.0,0.00016438,3]
[402350926,1768662647986,-500.0,0.00016438,3]
[402350928,1768662647995,-895.81,0.00016438,3]
[402350930,1768662648005,-500.0,0.00016438,3]
[402350932,1768662648014,-1728.12,0.00016438,3]
[402350934,1768662648023,-1227.62,0.00016438,3]
[402350936,1768662648034,-1394.65,0.00016438,3]
[402350938,1768662648044,-500.0,0.00016438,3]
[402350940,1768662648053,-500.0,0.00016438,3]
[402350942,1768662648063,-500.0,0.00016438,3]
[402350944,1768662648073,-500.0,0.00016438,3]
[402350946,1768662648083,-500.0,0.00016438,3]
[402350948,1768662648093,-1454.87,0.00016438,3]
[402350950,1768662648105,-500.0,0.00016438,3]
[402350952,1768662648118,-1181.71,0.00016438,3]
[402350954,1768662648127,-1377.08,0.00016438,3]
[402350956,1768662648137,-500.0,0.00016438,3]
[402350958,1768662648147,-364.13507716,0.00016438,3]
[402350960,1768662648156,-251.11469402,0.00016438,3]
[402350962,1768662648165,-623.41,0.00016438,3]
[402350964,1768662648175,-1000.0,0.00016438,2]
[402350966,1768662648184,-500.0,0.00016438,3]
[402350968,1768662648194,-1270.86,0.00016438,3]
[402350970,1768662648203,-500.0,0.00016438,3]
[402350972,1768662648213,-500.0,0.00016438,3]
[402350974,1768662648223,-500.0,0.00016438,3]
[402350976,1768662648232,-1163.58,0.00016438,3]
[402350978,1768662648242,-500.0,0.00016438,3]
[402350980,1768662648252,-500.0,0.00016438,3]
[402350982,1768662648262,-784.81,0.00016438,3]
[402350984,1768662648272,-500.0,0.00016438,3]
[402350986,1768662648282,-500.0,0.00016438,3]
[402350988,1768662648291,-500.0,0.00016438,3]
[402350990,1768662648303,-500.0,0.00016438,3]
[402350992,1768662648313,-754.58,0.00016438,3]
[402350995,1768662648323,-676.61,0.00016438,3]
[402350997,1768662648333,-500.0,0.00016438,3]
[402350999,1768662648344,-1049.01,0.00016438,3]
[402351001,1768662648354,-500.0,0.00016438,3]
[402351003,1768662648364,-562.34469649,0.00016438,3]
[402351005,1768662648376,-1161.42,0.00016438,3]
[402351007,1768662648385,-735.13,0.00016438,3]
[402351009,1768662648395,-500.0,0.00016438,3]
[402351011,1768662648405,-972.23,0.00016438,3]
[402351013,1768662648415,-500.0,0.00016438,3]
[402351015,1768662648425,-500.0,0.00016438,3]
[402351017,1768662648435,-500.0,0.00016438,3]
[402351019,1768662648445,-500.0,0.00016438,3]
[402351021,1768662648454,-500.0,0.00016438,3]
[402351023,1768662648466,-1232.8,0.00016438,3]
[402351026,1768662648475,-500.0,0.00016438,2]
[402351028,1768662648485,-500.0,0.00016438,3]
[402351030,1768662648495,-1818.79,0.00016438,3]
[402351032,1768662648504,-804.18,0.00016438,3]
[402351034,1768662648513,-1333.82,0.00016438,3]
[402351036,1768662648522,-362.93059833,0.00016438,3]
[402351038,1768662648532,-500.0,0.00016438,2]
[402351040,1768662648541,-500.0,0.00016438,3]
[402351042,1768662648551,-500.0,0.00016438,3]
[402351044,1768662648561,-500.0,0.00016438,3]
[402351046,1768662648570,-500.0,0.00016438,3]
[402351048,1768662648579,-719.75,0.00016438,3]
[402351050,1768662648589,-500.0,0.00016438,3]
[402351052,1768662648598,-1699.73,0.00016438,3]
[402351054,1768662648608,-500.0,0.00016438,3]
[402351056,1768662648618,-500.0,0.00016438,3]
[402351058,1768662648627,-500.0,0.00016438,3]
[402351060,1768662648637,-500.0,0.00016438,3]
[402351062,1768662648646,-500.0,0.00016438,3]
[402351064,1768662648656,-500.0,0.00016438,3]
[402351066,1768662648666,-2882.98,0.00016438,3]
[402351068,1768662648675,-500.0,0.00016438,3]
[402351070,1768662648685,-500.0,0.00016438,3]
[402351072,1768662648695,-500.0,0.00016438,3]
[402351074,1768662648705,-529.6,0.00016438,3]
[402351076,1768662648715,-500.0,0.00016438,3]
[402351078,1768662648724,-500.0,0.00016438,2]
[402351080,1768662648733,-3000.0,0.0001644,2]
[402351082,1768662648743,-1676.318327,0.0001644,7]
[402351084,1768662648753,-3000.0,0.0001645,2]
[402351086,1768662648762,-3000.0,0.0001646,2]
[402351088,1768662648772,-3000.0,0.0001647,2]
[402351090,1768662648781,-500.0,0.00016473,2]
[402351092,1768662648791,-3000.0,0.0001648,2]
[402351094,1768662648801,-3000.0,0.0001649,2]
[402351096,1768662648810,-3000.0,0.000165,2]
[402351098,1768662648819,-4726.568662,0.0001651,2]
[402351100,1768662648828,-214.907687,0.00016526,7]
[402351102,1768662648838,-1005.790995,0.00016526,7]
[402351104,1768662648853,-1500.0,0.0001656,2]
[402351106,1768662648862,-172.17955796,0.00016562,17]
[402351108,1768662648872,-152.395734,0.00016608,7]
[402351110,1768662648882,-161.19749952,0.0001661,2]
[402351112,1768662648891,-1041.66666667,0.0001663,2]
[402351114,1768662648901,-500.0,0.00016712,3]
[402351116,1768662648911,-500.0,0.00016712,3]
[402351118,1768662648920,-500.0,0.00016712,3]
[402351120,1768662648931,-500.0,0.00016712,3]
[402351122,1768662648942,-522.82,0.00016712,3]
[402351124,1768662648952,-500.0,0.00016712,3]
[402351126,1768662648961,-943.68399769,0.00016712,3]
[402351128,1768662648972,-674.48,0.00016712,3]
[402351130,1768662648981,-712.93,0.00016712,3]
[402351132,1768662648991,-500.0,0.00016712,3]
[402351134,1768662649002,-500.0,0.00016712,3]
[402351137,1768662649012,-500.0,0.00016712,3]
[402351139,1768662649023,-658.11,0.00016712,3]
[402351140,1768662649043,-500.0,0.00016712,3]
[402351143,1768662649057,-500.0,0.00016712,3]
[402351145,1768662649067,-500.0,0.00016712,3]
[402351147,1768662649078,-500.0,0.00016712,3]
[402351149,1768662649089,-500.0,0.00016712,3]
[402351151,1768662649099,-500.0,0.00016712,3]
[402351153,1768662649110,-622.86303291,0.00016712,3]
[402351155,1768662649121,-348.04789676,0.00016712,3]
[402351157,1768662649131,-527.98947312,0.00016712,3]
[402351159,1768662649141,-500.0,0.00016712,3]
[402351161,1768662649151,-1398.34,0.00016712,3]
[402351163,1768662649160,-500.0,0.00016712,3]
[402351165,1768662649170,-500.0,0.00016712,3]
[402351167,1768662649180,-597.12,0.00016712,3]
[402351169,1768662649190,-500.0,0.00016712,3]
[402351171,1768662649199,-500.0,0.00016712,3]
[402351173,1768662649208,-500.0,0.00016712,3]